Cogmind - Beta 14 @@@ ROGUE MODE // 2025.03.29 @ 18:28:01 Player: CrossedViper Result: Destroyed by H-88 Terminator with KE Penetrator Performance ------------- Evolutions (9) 4500 Regions Visited (29) 5800 Robots Destroyed (496) 2480 Value Destroyed (24259) 24259 Prototype IDs (69) 1380 Alien Tech Used (6) 1200 Bonus (16567) 16567 TOTAL SCORE: 56186 Bonus ------- High Alert Combat Kills 5708 Follower Combat Kills 1421 Delivered SUBCON Basin 2000 Registered with UFD 300 Met Data Miner 300 Met Zhirov 300 Met Warlord at Base 500 MAIN.C Attacked Warlord 500 Warlord Defense Kills 1766 Found Hidden Lab 3000 Used Core Reset Matrix 3000 Friendly Fire -2228 Cogmind --------- Core Integrity 0/1600 Matter 245/300 Energy 333/700 System Corruption 25% Temperature Cool (0) Movement Core (1600) Ox31 Location -1/Command Parts ------- > --- POWER (4) -------- (None) > --- PROPULSION (6) --- (None) > --- UTILITY (12) ----- Huge Storage Unit Experimental Energy Well > --- WEAPON (4) ------- Gamma Rifle Gamma Rifle > --- INVENTORY (25) --- Reinforced Quantum Reactor Enhanced Biometal Leg Advanced Cryofiber Web Experimental Energy Well (509) Long-range Tractor Beam Gamma Rifle Gamma Rifle Heavy Laser Enhanced Quantum Rifle Long-range Proton Cannon Gamma Bomb Array Peak State ------------ > --- POWER ------------ Reinforced Fission Core Vortex Chain Reactor > --- PROPULSION ------- Centrium Leg Centrium Leg Centrium Leg Centrium Leg Centrium Leg Centrium Leg > --- UTILITY ---------- Experimental Heat Sink Huge Storage Unit Advanced Terrain Scanner Experimental Terrain Scan Processor Experimental Target Analyzer Experimental Core Analyzer Experimental Hacking Suite Quantum Router LC Capacitor > --- WEAPON ----------- Heavy Tesla Rifle Plasma Rifle Plasma Rifle Nova Cannon > --- INVENTORY -------- Centrium Leg Cooled Antigrav System Cooled Antigrav System Cooled Linear Gravjet Advanced Heat Sink Experimental Heat Sink Experimental Heat Sink Experimental Energy Well Experimental Energy Well Improved Weapon Cycler Experimental Cloaking Device Heavy Regenerative Plating Advanced Force Field Experimental System Shield Advanced System Restoration Module Long-range Tractor Beam Transdimensional Reconstructor Core Regenerator Heavy Tesla Rifle Heavy Tesla Rifle Vortex Driver Vortex Driver Potential Cannon [Rating: 227] Favorites ----------- Power Light Nuclear Core Engine Ion Engine Power Core Light Nuclear Core Reactor Micro Antimatter Reactor Propulsion Centrium Leg Treads Light Treads Leg Centrium Leg Wheel Overtuned Huge Scrapsphere Hover Unit Airjet Flight Unit Field Propulsion Drive Utility Advanced Heat Sink Device Advanced Heat Sink Storage Large Storage Unit Processor Advanced Targeting Computer Hackware Improved Hacking Suite Protection Heavy Regenerative Plating Artifact LC Capacitor Weapon Improved Assault Rifle Energy Gun Improved Heavy Laser Energy Cannon Heavy Proton Cannon Ballistic Gun Improved Assault Rifle Ballistic Cannon Heavy Gauss Cannon Launcher Long-range Missile Launcher Special Weapon Plasma Cutter Impact Weapon Makeshift Hammer Slashing Weapon Greatsword Piercing Weapon Lance Build | -11 -10 -10 -10 -8 -8 -8 -8 -6 -6 -6 -6 -5 -5 -5 -5 -5 -4 -4 -4 -4 -4 -3 -3 -3 -3 -2 -2 -1 -1 ------- Run | Yrd Mat Min Sub Mat Sto Rec Scr Fac Low Low Dat Pro Fac Upp Upp Zhi Pro Fac Upp Upp War Pro Res Arm Lab Res Tes Acc Com Slots Evolved 18 | . . . . 4 . . . 4 . . . . 2 . . . . 2 . . . . 2 . . 2 . 2 . Power 3 | . . . . . . . . . . . . . 1 . . . . . . . . . 1 . . . . 1 . Propulsion 3 | . . . . 1 . . . 1 . . . . . . . . . . . . . . 1 . . . . . . Utility 10 | . . . . 2 . . . 3 . . . . . . . . . 2 . . . . . . . 2 . 1 . Weapon 2 | . . . . 1 . . . . . . . . 1 . . . . . . . . . . . . . . . . Parts Attached 582 | 7 19 2 16 22 11 . 10 53 6 7 . 22 40 5 . 12 . 10 1 29 26 21 31 22 17 6 46 78 63 Power 56 | 1 3 . 1 1 1 . . 4 . 1 . 2 7 . . . . 1 . . 1 4 2 1 . . 5 11 10 Engine 13 | 1 3 . 1 . . . . 1 . 1 . . 5 . . . . . . . . . . . . . 1 . . Core 10 | . . . . 1 1 . . 3 . . . 2 2 . . . . . . . . . 1 . . . . . . Reactor 33 | . . . . . . . . . . . . . . . . . . 1 . . 1 4 1 1 . . 4 11 10 Propulsion 101 | 2 7 1 1 5 5 . . 17 1 1 . 5 7 2 . . . 1 . 4 3 5 6 6 . . 4 11 7 Treads 40 | 2 7 1 1 4 4 . . 6 . . . 5 2 1 . . . . . . . 1 6 . . . . . . Leg 44 | . . . . . . . . 5 1 1 . . . . . . . . . 4 3 3 . 6 . . 4 10 7 Wheel 7 | . . . . 1 . . . 3 . . . . . 1 . . . 1 . . . . . . . . . 1 . Hover 9 | . . . . . 1 . . 3 . . . . 4 . . . . . . . . 1 . . . . . . . Flight 1 | . . . . . . . . . . . . . 1 . . . . . . . . . . . . . . . . Utility 173 | 2 3 1 8 6 2 . . 15 1 3 . 5 13 1 . 6 . 4 . 4 9 4 11 5 11 6 13 22 18 Device 102 | 1 1 1 7 3 1 . . 8 1 1 . 4 5 . . 1 . 3 . 4 3 1 9 4 4 4 9 12 15 Storage 14 | 1 2 . 1 . . . . . . . . . 2 . . 2 . . . . 1 . . . 1 . 2 1 1 Processor 15 | . . . . 1 1 . . 1 . . . . 4 . . . . 1 . . 3 1 . 1 . . . 1 1 Hackware 8 | . . . . 1 . . . 2 . . . . . . . . . . . . . . . . . 2 . 2 1 Protection 33 | . . . . 1 . . . 4 . 2 . 1 2 1 . 3 . . . . 2 2 2 . 5 . 2 6 . Artifact 1 | . . . . . . . . . . . . . . . . . . . . . . . . . 1 . . . . Weapon 252 | 2 6 . 6 10 3 . 10 17 4 2 . 10 13 2 . 6 . 4 1 21 13 8 12 10 6 . 24 34 28 Energy Gun 103 | . 2 . 4 3 1 . 1 8 2 1 . 5 6 . . 1 . 1 . 5 7 3 6 5 5 . 11 11 15 Energy Cannon 50 | . . . . . . . . 3 . . . 2 . . . 1 . 1 . 9 3 1 6 3 1 . 5 5 10 Ballistic Gun 75 | 2 4 . . 7 1 . 9 4 1 . . 1 4 2 . 4 . 2 1 3 3 1 . 2 . . 5 17 2 Ballistic Cannon 5 | . . . . . . . . . . . . . 1 . . . . . . . . . . . . . 3 1 . Launcher 14 | . . . . . . . . 2 1 1 . 1 1 . . . . . . 4 . 3 . . . . . . 1 Special Weapon 1 | . . . . . 1 . . . . . . . . . . . . . . . . . . . . . . . . Impact Weapon 2 | . . . 2 . . . . . . . . . . . . . . . . . . . . . . . . . . Slashing Weapon 1 | . . . . . . . . . . . . 1 . . . . . . . . . . . . . . . . . Piercing Weapon 1 | . . . . . . . . . . . . . 1 . . . . . . . . . . . . . . . . Special Melee Weapon . | . . . . . . . . . . . . . . . . . . . . . . . . . . . . . . Unidentified Prototypes 42 | . . . . 3 1 . 1 2 . . . . 1 . . 4 . 1 . . 9 4 1 . 8 1 4 2 . Corrupted Parts 21 | . . . . . . . . 2 . . . 1 . . . . . . . 9 . 2 2 2 . . 1 2 . System Corruption 95 | . . . . . . . . 10 . . . 1 . . . . . . . 51 . 5 11 12 . . 1 4 . Parts Lost 143 | . 5 1 2 . 1 . . 11 . 1 . 28 . . . . . 1 1 13 1 3 8 3 . 3 8 17 36 Power 22 | . 1 . 1 . 1 . . 1 . . . 3 . . . . . . . . . 1 . 1 . . 2 4 7 Propulsion 28 | . 2 1 1 . . . . 6 . . . 8 . . . . . . . 1 . . 1 . . . . 1 7 Utility 47 | . . . . . . . . 2 . 1 . 7 . . . . . 1 . 6 1 1 4 . . . 5 7 12 Weapon 46 | . 2 . . . . . . 2 . . . 10 . . . . . . 1 6 . 1 3 2 . 3 1 5 10 Highest Loss Streak 25 | . 2 1 1 . 1 . . 4 . 1 . 11 . . . . . 1 1 7 1 2 3 1 . 3 3 3 25 To Critical Strikes 5 | . . . . . . . . . . . . 3 . . . . . . . . . . . . . . 1 . 1 Average Slot Usage (%) 88 | . 99 100 99 97 99 100 100 89 85 86 86 58 68 81 82 62 88 82 83 72 91 84 77 90 87 85 84 85 83 Engine 3 | . 14 14 13 5 . . . . . . 6 1 5 . . . . . . . . . . . . . 1 . . Core 3 | . . . . 3 8 9 9 5 6 5 . 3 2 11 11 11 11 5 5 5 4 . . 4 4 4 . . . Reactor 2 | . . . . . . . . . . . . . . . . . . 4 5 5 5 9 9 8 4 4 8 12 10 Treads 12 | . 27 28 27 23 26 27 27 11 . . . 10 8 10 11 11 11 7 5 1 . . 11 2 . . . . . Leg 8 | . . . . . . . . . 25 26 26 6 . . . . . . . 6 20 21 8 22 27 25 25 22 22 Device 16 | . 14 14 14 17 18 18 18 14 13 13 13 12 10 17 17 18 23 26 31 24 25 16 12 13 12 13 17 19 25 Storage 7 | . 14 14 14 9 9 9 9 6 6 6 6 4 2 5 5 5 5 5 5 5 5 5 4 4 4 4 4 6 3 Processor 6 | . . . . 7 4 9 9 9 6 6 6 3 10 5 5 5 5 3 . . 6 16 18 20 17 12 8 4 2 Protection 1 | . . . . . 4 . . 1 6 5 6 1 3 4 5 2 5 5 5 . 3 3 1 . . . 4 2 2 Energy Gun 10 | . 15 28 23 4 8 9 9 8 15 13 13 8 7 5 5 . 5 10 11 3 14 1 3 6 9 11 6 3 6 Energy Cannon 1 | . . . . . . . . 2 . . . . . . . . . . . 6 . 4 2 1 4 3 . . 1 Ballistic Gun 7 | . 11 . . 22 17 18 17 7 3 6 6 1 5 17 17 2 17 9 8 8 3 4 2 5 . . 2 8 4 Peak Build Rating 227 | 7 10 10 29 49 49 47 38 71 66 67 65 65 105 104 104 103 102 113 112 112 138 139 157 178 209 227 216 225 213 Average Rating 83 | 5 8 9 13 41 47 45 33 57 65 65 65 42 79 103 103 79 102 109 111 93 117 119 138 162 171 220 189 198 191 On Entrance 89 | . 7 10 10 29 47 47 29 38 66 66 65 65 6 104 104 103 102 102 112 112 97 138 126 138 163 209 199 190 201 Naked Turns 16 | . . . . . . . . . . . . 16 . . . . . . . . . . . . . . . . . Heaviest Build 227 | 14 31 31 52 63 63 55 57 84 81 87 87 90 91 91 91 91 79 87 87 92 95 95 103 131 178 180 191 227 219 Greatest Support 187 | 40 40 40 40 60 60 60 60 88 65 70 70 70 140 140 140 140 140 140 20 90 100 120 187 184 180 180 182 182 180 Greatest Overweight (x) 8 | . 8 . 1 2 1 . . 5 1 1 1 4 3 1 . . . 4 4 4 1 2 2 3 . . 1 1 1 Average Overweight (x) . | . . . . . . . . 1 1 . 1 . . . . . . 2 4 2 . . . . . . . . . Largest Inventory Capacity 25 | 8 15 15 20 20 20 20 20 20 20 20 20 20 15 15 15 15 15 15 15 15 15 15 15 15 25 25 25 25 25 Average Capacity 17 | 7 12 15 15 20 20 20 20 20 20 20 20 17 10 15 15 15 15 15 15 15 15 15 15 15 19 25 25 25 25 Most Carried 25 | 4 15 15 20 20 20 20 20 20 20 20 19 19 15 15 15 15 13 15 14 13 15 15 15 15 25 25 25 25 25 Average Carried 16 | 2 10 14 14 19 20 19 16 19 19 19 19 12 8 14 14 14 13 14 13 9 14 13 14 14 17 23 21 22 24 Final Capacity 25 | 8 15 15 20 20 20 20 20 20 20 20 20 5 15 15 15 15 15 15 15 15 15 15 15 15 25 25 25 25 25 Final Carried 25 | 4 15 14 20 20 20 6 20 20 20 19 19 5 15 15 14 13 13 14 13 10 13 14 15 15 25 25 24 22 11 Class Distribution -------------------- 25% | Scavenger-Gunner 20% | Mutant 13% | Commander-Gunner 9% | Scavenger-Tank 8% | Scavenger-Mutant 4% | Hacker-Gunner 3% | Commander-Tank 3% | Scavenger-Scrapper 3% | Gunner 3% | Scavenger-Skirmisher Dominant Class ---------------- Mutant | -10/Materials Mutant | -10/Mines Mutant | -10/Subcaves Scavenger-Skirmisher | -8/Materials Scavenger-Tank | -8/Storage Commander-Gunner | -8/Recycling Commander-Gunner | -8/Scraptown Hacker-Gunner | -6/Factory Scavenger-Gunner | -6/Lower Caves Scavenger-Gunner | -6/Lower Caves Scavenger-Gunner | -6/Data Miner Scavenger-Gunner | -5/Proximity Caves Scavenger-Tank | -5/Factory Commander-Tank | -5/Upper Caves Commander-Tank | -5/Upper Caves Commander-Mutant | -5/Zhirov Scavenger-Tank | -4/Proximity Caves Scavenger-Scrapper | -4/Factory Scavenger-Scrapper | -4/Upper Caves Scavenger-Gunner | -4/Upper Caves Scavenger-Gunner | -4/Warlord Scavenger-Mutant | -3/Proximity Caves Scavenger-Mutant | -3/Research Scavenger-Gunner | -3/Armory Scavenger-Gunner | -3/Lab Scavenger-Gunner | -2/Research Scavenger-Gunner | -2/Testing Scavenger-Gunner | -1/Access Scavenger-Gunner | -1/Command Resources | -11 -10 -10 -10 -8 -8 -8 -8 -6 -6 -6 -6 -5 -5 -5 -5 -5 -4 -4 -4 -4 -4 -3 -3 -3 -3 -2 -2 -1 -1 ----------- Run | Yrd Mat Min Sub Mat Sto Rec Scr Fac Low Low Dat Pro Fac Upp Upp Zhi Pro Fac Upp Upp War Pro Res Arm Lab Res Tes Acc Com Matter Collected 12774 | 294 325 20 120 451 439 56 65 1264 171 132 . 625 920 182 32 124 213 391 49 678 345 325 592 670 90 33 805 2394 969 Remotely 248 | . . . . . . . . . . . . . . . . . . . . . . . . . . . . 248 . Salvage Created 28395 | 140 786 89 231 558 1803 119 . 2045 417 174 . 313 2749 77 66 130 140 838 382 1844 742 740 1994 1950 90 . 2039 4951 2988 Parts 1286 | 5 51 5 17 35 105 6 . 112 15 5 . 13 111 8 6 . 3 38 4 66 34 30 100 97 13 . 91 214 102 Haulers Intercepted 15 | . . . . 2 2 . . 2 . . . . 3 . . . . 1 . . . . 1 . . . . 4 . Recyclers Shooed 10 | . . . . . 2 . . 4 . . . . 1 . . . . . . . . . . . . . 1 . 2 Parts Field Recycled . | . . . . . . . . . . . . . . . . . . . . . . . . . . . . . . Retrieved Matter . | . . . . . . . . . . . . . . . . . . . . . . . . . . . . . . Parts Self-Destructed 183 | . . . 6 . . . . . 10 4 . 37 . 29 15 . 7 . 3 47 . 25 . . . . . . . Prevented 21 | . . . . . . . . . . 2 . 8 . . . . . . . 11 . . . . . . . . . Kills | -11 -10 -10 -10 -8 -8 -8 -8 -6 -6 -6 -6 -5 -5 -5 -5 -5 -4 -4 -4 -4 -4 -3 -3 -3 -3 -2 -2 -1 -1 ------- Run | Yrd Mat Min Sub Mat Sto Rec Scr Fac Low Low Dat Pro Fac Upp Upp Zhi Pro Fac Upp Upp War Pro Res Arm Lab Res Tes Acc Com Combat Hostiles Destroyed 385 | . 16 2 5 8 22 2 . 37 11 6 . 6 27 3 1 . 1 6 7 38 13 21 21 28 1 . 23 46 34 Melee 2 | . . . . . . . . . . . . . 2 . . . . . . . . . . . . . . . . Guns 220 | . 16 2 5 8 22 2 . 23 7 3 . 2 22 3 1 . 1 2 6 11 12 3 6 11 . . 8 32 12 Cannons 48 | . . . . . . . . 4 . . . 1 2 . . . . . . 7 . 4 4 8 1 . 6 4 7 AOE 61 | . . . . . . . . 10 4 3 . 2 . . . . . . . 16 1 13 1 1 . . 1 5 4 Classes Destroyed 27 | 2 7 . 1 4 1 . . 3 1 . . . . . . . . . 1 1 3 1 1 . . . . . 1 Worker 17 | . 2 . . . . . . 5 . . . . 3 . . . . . . . . . 1 . . . 2 1 3 Builder 24 | . 1 1 . 1 3 1 . 7 . . . . 5 . . . . . . . . . 2 . . . 1 2 . Tunneler 4 | 2 1 . . . . . . . . . . . . . . . . 1 . . . . . . . . . . . Hauler 15 | . . . . 2 2 . . 2 . . . . 3 . . . . 1 . . . . 1 . . . . 4 . Recycler 21 | 1 1 . . 1 6 . . 2 . . . . 2 . . . . . . . . . 1 . . . 2 2 3 Carrier 1 | . . . . . . . . . . . . . . . . . . . . . . . . . . . . . 1 Mechanic 3 | . . . . 1 . . . . . . . . . . . . . . . . . . . . . . . 2 . Operator 6 | . 1 . . . 2 . . . . . . . . . . . . . . . . . . 1 . . 1 1 . Drone 1 | . . . . . . . . . . . . . . . . . . . . . . 1 . . . . . . . Watcher 11 | . 1 . . . 2 . . . . . . . 1 . . . . . . . . . 2 1 . . . 2 2 Swarmer 70 | . 3 . . 3 . . . 10 4 4 . 3 . 3 . . 1 . 5 11 1 9 1 8 . . 4 . . Saboteur 2 | . . . . . . . . . . . . . . . . . . . . 1 . . . . . . . . 1 Grunt 140 | . 12 2 2 2 13 . . 17 . 1 . . 18 . . . . . . 17 3 3 6 10 . . 4 17 13 Brawler 12 | . . . . . 1 . . . . . . 1 1 . . . . . . 2 1 3 . . . . . 1 2 Duelist 14 | . . . . . . . . . . . . 1 . . . . . . . 2 . 5 . 1 . . . 1 4 Protector 6 | . . . . . . . . . . . . . . . . . . . . . 3 . . 1 . . . . 2 Sentry 32 | . . . . 2 8 2 . 1 1 1 . 1 3 . . . . 2 . 2 . 1 1 . . . 1 4 2 Demolisher 2 | . . . . . . . . . . . . . . . . . . . . . 2 . . . . . . . . Specialist 12 | . . . . . . . . . . . . . . . . . . . . . . . 4 . . . 6 2 . Hunter 27 | . . . . 1 . . . 2 2 . . . 1 . 1 . . 2 . 2 . . 4 . . . 1 11 . Programmer 48 | . . . . . . . . 6 . . . . 4 . . . . 2 1 . . . 3 8 . . 7 8 9 Heavy 4 | . . . . . . . . 1 . . . . . . . . . . . . . . 2 . . . . 1 . Behemoth 3 | . . . . . . . . . . . . . . . . . . . 1 1 . . . . . . . 1 . Combat Programmer 1 | . . . . . . . . . . . . . . . . . . . . . . . . . . . . . 1 Executioner 2 | . . . . . . . . . . . . . . . . . . . . . 2 . . . . . . . . Artisan 1 | . . . 1 . . . . . . . . . . . . . . . . . . . . . . . . . . Subdweller 4 | . 1 . 3 . . . . . . . . . . . . . . . . . . . . . . . . . . Scrapoid 6 | . . . . . . . . 1 . . . . . . . . . 4 . . . . . . . . . 1 . Packrat 1 | . . . . . . . . . . . . . . . . . . . 1 . . . . . . . . . . Savage 1 | . . . . . . . . . . . . . . . . . . . . . . 1 . . . . . . . Butcher 4 | . . . . . . . . . 4 . . . . . . . . . . . . . . . . . . . . Bouncer 2 | . . . . . . . . . . . . . . . . . . . . . 2 . . . . . . . . Best Kill Streak 18 | 3 3 2 2 7 18 2 . 7 4 4 . 3 10 2 1 . 1 4 5 10 5 9 8 5 1 . 7 9 16 Combat Bots Only 12 | . 3 2 2 5 12 2 . 5 4 4 . 3 7 2 1 . 1 4 5 10 5 9 4 5 1 . 7 8 10 Max Kills in Single Turn 5 | 1 2 1 1 2 2 1 . 3 2 3 . 2 2 2 1 . 1 2 1 3 2 5 4 1 1 . 2 3 2 Gunslinging 1 | . 1 . . 1 . . . . . . . . 1 1 . . . . . 1 . . . . . . . 1 . Exploded 5 | . . . . . . . . 3 2 3 . 2 . . . . . . . 3 1 5 1 1 . . 1 2 2 Melee 1 | . . . . . . . . . . . . . 1 . . . . . . . . . . . . . . . . Uniques/NPCs Destroyed 1 | . . . . . . . . . . . . . . . . . . . . . . . . . 1 . . . . A5 (-3/Lab) Combat | -11 -10 -10 -10 -8 -8 -8 -8 -6 -6 -6 -6 -5 -5 -5 -5 -5 -4 -4 -4 -4 -4 -3 -3 -3 -3 -2 -2 -1 -1 -------- Run | Yrd Mat Min Sub Mat Sto Rec Scr Fac Low Low Dat Pro Fac Upp Upp Zhi Pro Fac Upp Upp War Pro Res Arm Lab Res Tes Acc Com Hostile Shots Fired 2723 | . 94 17 31 76 99 10 . 206 60 54 . 189 102 6 18 . . 28 24 152 25 40 229 201 30 83 237 381 331 Missed 812 | . 19 7 12 28 29 4 . 64 19 20 . 48 34 1 4 . . 6 9 48 13 12 66 49 8 30 78 112 92 Damage Taken 41991 | . 1007 152 436 585 1102 107 . 2765 698 370 . 3237 1342 72 251 . 31 489 357 2127 757 887 3480 1728 308 1867 3673 6310 7853 Core 4964 | . 105 35 107 108 84 . . 357 62 15 . 377 96 . . . . 21 13 325 252 148 363 99 14 191 211 475 1506 Absorbed by Shields 2780 | . . . . . . . . 65 . . . . . . . . . . . . 124 . . 1760 265 . 566 . . Reduced by Siege Mode 212 | . . . . . . . . . . . . . . . . . . 11 . 26 . . 144 31 . . . . . Redirected to Shielding 55 | . . . . . . . . . . . . . . . . . . . . . . 13 42 . . . . . . Ignored by Resistances 22 | . . . . . . . . 22 . . . . . . . . . . . . . . . . . . . . . Regen/Repaired (Parts) 3497 | . 122 . . . . . . 295 10 10 . . . . . . . . 14 . 114 . . . . . 780 1025 1127 Core Remaining (%) 53 | 100 . . 1 . . . 65 . . . . 4 . . . . 90 . . . . 34 . . 58 . 72 . . Volleys Fired 1215 | 6 87 10 24 21 59 6 . 94 24 14 . 39 68 4 3 8 3 22 17 63 37 40 105 110 37 8 63 145 98 Largest 4 | 2 2 2 2 3 3 3 . 3 3 3 . 3 4 4 4 1 4 4 4 4 4 4 4 4 4 4 4 4 4 Hottest 360 | 40 115 115 130 107 107 107 . 215 210 160 . 195 255 177 177 81 177 333 333 267 206 247 325 293 293 333 231 360 330 Shots Fired 3048 | 12 170 19 48 63 177 18 . 226 63 40 . 72 241 17 14 8 12 76 56 177 100 59 172 232 91 14 146 469 256 Gun 2613 | 12 170 19 48 63 177 18 . 174 61 39 . 49 226 17 14 6 12 76 56 106 97 38 134 194 64 6 124 429 184 Cannon 400 | . . . . . . . . 43 . . . 19 14 . . 2 . . . 63 3 15 38 38 27 8 22 40 68 Launcher 35 | . . . . . . . . 9 2 1 . 4 1 . . . . . . 8 . 6 . . . . . . 4 Special . | . . . . . . . . . . . . . . . . . . . . . . . . . . . . . . Kinetic 1297 | 12 83 . . 57 118 12 . 98 10 13 . 14 116 13 11 6 9 28 11 66 25 30 51 93 28 . 41 287 65 Thermal 1148 | . 87 19 48 6 59 6 . 119 51 26 . 30 120 4 3 . 3 48 45 66 36 3 . 35 62 12 5 100 155 Explosive 25 | . . . . . . . . 9 2 1 . 4 1 . . . . . . 8 . . . . . . . . . Electromagnetic 511 | . . . . . . . . . . . . 24 4 . . 2 . . . 37 2 15 112 101 . 2 100 82 30 Entropic 67 | . . . . . . . . . . . . . . . . . . . . . 37 11 9 3 1 . . . 6 Robot Hit Streak 24 | 5 16 5 9 5 20 8 . 12 8 9 . 19 13 3 3 6 7 22 24 14 14 8 19 5 7 7 15 11 15 Robot Miss Streak 8 | 2 6 2 4 3 5 1 . 6 3 4 . 1 3 6 2 1 2 4 3 8 4 6 4 6 4 1 8 8 7 Penetration Max 2 | . . . . 1 . . . . . . . . 1 . . . 1 1 . 1 1 1 1 . . . 1 2 1 Secondary Targets 42 | . 1 . 1 1 7 1 . 3 . . . . 9 1 . . 1 2 2 1 5 . . . . . . 6 1 Max Gunslinging Chain 1 | . 1 . 1 1 1 1 . 1 . . . . 1 1 . . 1 1 1 1 1 . . . . . . 1 1 Shots Hit Robots 1801 | 8 114 12 31 35 114 15 . 146 44 20 . 58 168 6 7 7 6 57 33 98 66 22 93 112 46 7 91 249 136 Core Hits 998 | 4 44 4 11 19 61 3 . 183 18 8 . 17 71 4 5 3 4 22 12 73 34 34 37 51 15 2 48 130 81 Critical Kills 36 | . . . . 1 . . . . 1 . . . 2 . . . 1 . . 1 1 2 1 2 . . 1 18 5 Critical Parts Destroyed 46 | . . . . . . . . . . . . . 4 . . . . 1 . 2 2 . 1 4 . . 2 24 6 Critical Strikes 156 | . 5 2 1 1 7 . . 2 2 . . 2 12 . . . 1 11 7 7 3 5 9 14 . . 6 45 14 Burn 41 | . 5 2 1 . 7 . . 2 1 . . 2 2 . . . . 10 7 2 . . . . . . . . . Meltdown 1 | . . . . . . . . . . . . . . . . . . . . . . . . . . . . . 1 Destroy 82 | . . . . 1 . . . . 1 . . . 7 . . . 1 1 . 3 1 2 2 6 . . 3 44 10 Blast 3 | . . . . . . . . . . . . . 2 . . . . . . . . . . . . . 1 . . Corrupt 23 | . . . . . . . . . . . . . . . . . . . . 2 . 3 5 8 . . 2 1 2 Impale 1 | . . . . . . . . . . . . . 1 . . . . . . . . . . . . . . . . Detonate 2 | . . . . . . . . . . . . . . . . . . . . . 2 . . . . . . . . Sunder 3 | . . . . . . . . . . . . . . . . . . . . . . . 2 . . . . . 1 Melee Attacks 18 | . . . 8 . . . . . . . . 1 9 . . . . . . . . . . . . . . . . Impact 8 | . . . 8 . . . . . . . . . . . . . . . . . . . . . . . . . . Slashing 1 | . . . . . . . . . . . . 1 . . . . . . . . . . . . . . . . . Piercing 9 | . . . . . . . . . . . . . 9 . . . . . . . . . . . . . . . . Sneak Attacks 2 | . . . . . . . . . . . . . 2 . . . . . . . . . . . . . . . . Combat Hostiles . | . . . . . . . . . . . . . . . . . . . . . . . . . . . . . . Follow-up Attacks . | . . . . . . . . . . . . . . . . . . . . . . . . . . . . . . Damage Inflicted 66079 | 88 1389 201 478 680 2134 243 . 5744 1446 809 . 1817 4768 167 213 166 195 1533 1127 5328 2857 4554 3631 3475 923 263 3405 9668 8777 Guns 39025 | 88 1384 193 478 680 2113 243 . 2751 1033 523 . 973 4073 167 213 142 195 1521 1127 1750 2427 500 1646 2625 545 104 2266 5989 3276 Cannons 10950 | . . . . . . . . 691 . . . 380 317 . . 24 . . . 1361 132 242 1393 771 378 117 744 1756 2644 Explosions 15426 | . . . . . . . . 2302 413 286 . 428 . . . . . . . 2217 298 3812 592 60 . . 354 1923 2741 Melee 404 | . . . . . . . . . . . . 36 368 . . . . . . . . . . . . . . . . Ramming 274 | . 5 8 . . 21 . . . . . . . 10 . . . . 12 . . . . . 19 . 42 41 . 116 Kinetic 16406 | 88 568 . . 600 1153 163 . 1517 118 192 . 249 2193 142 162 142 149 377 59 1055 647 331 544 984 270 . 597 3076 1030 Thermal 27104 | . 816 193 478 80 960 80 . 2150 915 331 . 691 2104 25 51 . 46 1144 1068 1408 1078 26 209 831 653 203 789 4786 5989 Explosive 5809 | . . . . . . . . 1859 413 286 . 428 . . . . . . . 2217 . . 383 . . . . 223 . Electromagnetic 10400 | . . . . . . . . 218 . . . 413 93 . . 24 . . . 648 48 242 2094 1641 . 18 1978 1583 1400 Impact . | . . . . . . . . . . . . . . . . . . . . . . . . . . . . . . Slashing 36 | . . . . . . . . . . . . 36 . . . . . . . . . . . . . . . . . Piercing 368 | . . . . . . . . . . . . . 368 . . . . . . . . . . . . . . . . Entropic 5682 | . . . . . . . . . . . . . . . . . . . . . 1084 3955 401 . . . . . 242 Highest Corruption 59 | . . . . . . . . 17 1 1 . 22 5 5 5 5 5 2 2 53 53 5 27 53 59 4 27 9 25 Average Corruption 11 | . . . . . . . . 5 1 1 . 14 3 5 5 5 5 1 2 17 53 1 17 40 57 2 15 5 15 Corruption Purged 28 | . . . . . . . . 17 . 1 . . . . . . . . . . . . . . . . . 10 . Corruption Blocked . | . . . . . . . . . . . . . . . . . . . . . . . . . . . . . . Effects 423 | . . . . . . . . 47 10 2 . 20 24 12 7 4 5 1 3 32 2 2 20 64 29 1 41 39 58 Message Errors 82 | . . . . . . . . 5 1 . . 6 5 4 2 . 2 . . 4 1 . 5 12 2 . 12 6 15 Matter Fused 87 | . . . . . . . . 14 4 . . 2 8 3 . 2 1 . . 8 . . 2 8 3 . 12 9 11 Heat Flow Errors 36 | . . . . . . . . 5 . . . 4 3 1 1 . . . . 3 . . 1 5 . . 5 6 2 Energy Discharges 44 | . . . . . . . . 8 2 1 . . 1 2 1 . 1 1 1 2 . . 4 6 4 . 5 3 2 Parts Rejected 6 | . . . . . . . . . . . . . . . . . . . . . . . . . . . 1 1 4 Parts Fused 7 | . . . . . . . . 2 . . . . 1 . . . 1 . . 1 . . . . . . . 1 1 Data Loss (minor) 41 | . . . . . . . . 3 2 1 . 2 2 1 1 1 . . 2 3 1 1 2 6 2 1 1 4 5 Data Loss (major) 22 | . . . . . . . . 4 . . . 2 . . . . . . . 1 . . 1 2 1 . 1 3 7 Misfires 15 | . . . . . . . . 2 . . . . 1 1 2 . . . . 1 . 1 . 1 1 . 1 1 3 Alerts 8 | . . . . . . . . 1 . . . . 1 . . 1 . . . 1 . . . . . . 1 1 2 Misdirections 10 | . . . . . . . . . . . . 2 . . . . . . . . . . 1 6 . . . . 1 Weapon Failures 65 | . . . . . . . . 3 1 . . 2 2 . . . . . . 8 . . 4 18 16 . 2 4 5 Overload Shots 3 | . . . . . . . . . . . . . . . . . . . . 3 . . . . . . . . . Overflow Damage 1736 | . . . . . . . . 203 95 . . 79 124 . . . . . . 6 48 200 103 26 22 16 117 246 451 Projectiles 455 | . . . . . . . . . . . . 3 14 . . . . . . 6 14 . 37 26 22 16 32 23 262 Explosions 1154 | . . . . . . . . 203 95 . . 76 . . . . . . . . 34 200 66 . . . 85 223 172 Melee 127 | . . . . . . . . . . . . . 110 . . . . . . . . . . . . . . . 17 Knockbacks 7 | . . . . . . . . . . . . . 3 . . . . 1 . . . . . . . . 1 1 1 Impact 2 | . . . . . . . . . . . . . . . . . . 1 . . . . . . . . . . 1 Kinetic 4 | . . . . . . . . . . . . . 2 . . . . . . . . . . . . . 1 1 . Secondary 1 | . . . . . . . . . . . . . 1 . . . . . . . . . . . . . . . . Self-Inflicted Damage 1185 | . . . . . . . . 181 . 45 . . . . . . . . . 43 . 176 121 82 . . 26 . 511 Shots 25 | . . . . . . . . 5 . 1 . . . . . . . . . 1 . 1 1 1 . . 2 . 13 Rammed 8 | . 3 1 . . 1 . . . . . . . 2 . . . . 1 . . . . . . . . . . . Targets Rammed 20 | . 3 2 . . 1 . . . . . . . 2 . . . . 1 . . . . . 1 . 1 4 . 5 Kicked 11 | . . . . . . . . . . . . . . . . . . . . . . . . 1 . 1 4 . 5 Crushed 1 | . . 1 . . . . . . . . . . . . . . . . . . . . . . . . . . . Highest Temperature 545 | . 300 132 77 6 180 27 . 545 200 200 . 256 291 . . . . 474 474 529 . 84 418 292 232 228 258 415 40 Average Temperature 91 | . 78 61 30 4 47 7 . 92 128 123 . 140 72 . . . . 192 172 185 . 40 149 64 77 97 74 72 40 Received Heat Transfer 5727 | . 456 84 147 180 585 54 . 633 1 20 . 219 456 . . . 12 57 27 648 39 27 397 155 . 153 182 273 922 Effects 16 | . . . . . . . . 6 1 2 . 2 . . . . . 1 . . . . . . . . . 4 . Shutdowns 2 | . . . . . . . . 1 . . . . . . . . . . . . . . . . . . . 1 . Energy Bleed 6 | . . . . . . . . 3 1 . . 2 . . . . . . . . . . . . . . . . . Interference 6 | . . . . . . . . . . 2 . . . . . . . 1 . . . . . . . . . 3 . Matter Decay 1 | . . . . . . . . 1 . . . . . . . . . . . . . . . . . . . . . Short Circuit 1 | . . . . . . . . 1 . . . . . . . . . . . . . . . . . . . . . Siege Activations 9 | . . . . . . . . . . . . . . . 1 . . 1 . 3 . . 3 1 . . . . . Total Turns 131 | . . . . . . . . . . . . . . . 1 . . 14 . 18 . . 75 23 . . . . . Longest Duration 39 | . . . . . . . . . . . . . . . 1 . . 14 . 10 . . 39 23 . . . . . Robots Corrupted 48 | . . . . . . . . . . . . 1 . . . . . . . 3 . 1 10 8 . . 8 6 11 Combat Hostiles 46 | . . . . . . . . . . . . 1 . . . . . . . 3 . 1 10 8 . . 8 5 10 Parts Fried 141 | . . . . . . . . 1 . . . 2 1 . . . . . . 6 . . 34 39 . . 25 15 18 Impact Corruptions 2 | . . . . . . . . . . . . . . . . . . . . . . . . . . . . . 2 Robots Melted 9 | . . . . . . . . . . . . . 1 . . . . 5 1 1 . . . . . . . . 1 Combat Hostiles 8 | . . . . . . . . . . . . . 1 . . . . 4 1 1 . . . . . . . . 1 Parts Melted 88 | . 4 . 1 . 5 1 . 5 1 . . . 7 . . . . 15 15 8 9 . . 2 . . . 4 11 Heat Transferred 37813 | . 2627 629 1221 148 2294 148 . 3043 1636 481 . 1110 3367 37 62 . 74 2900 2400 2440 970 37 100 716 1035 311 611 4667 4749 Parts Sabotaged . | . . . . . . . . . . . . . . . . . . . . . . . . . . . . . . Parts Stolen . | . . . . . . . . . . . . . . . . . . . . . . . . . . . . . . Parts Stripped . | . . . . . . . . . . . . . . . . . . . . . . . . . . . . . . Power Chain Reactions 3 | . . . . . . . . . . . . . . . . . . . . . . . 1 1 . . . 1 . Alert | -11 -10 -10 -10 -8 -8 -8 -8 -6 -6 -6 -6 -5 -5 -5 -5 -5 -4 -4 -4 -4 -4 -3 -3 -3 -3 -2 -2 -1 -1 ------- Run | Yrd Mat Min Sub Mat Sto Rec Scr Fac Low Low Dat Pro Fac Upp Upp Zhi Pro Fac Upp Upp War Pro Res Arm Lab Res Tes Acc Com Peak Influence 1546 | 15 219 76 . 179 652 372 . 1214 . . . . 753 . . . . 283 . . . . 984 1143 . 19 506 1528 1546 Initial 928 | . 9 36 . . 27 201 . . . . . . 84 . . . . 56 . . . . 468 479 . . . 218 928 Average 454 | 4 102 26 . 42 378 277 . 536 . . . . 333 . . . . 112 . . . . 683 809 . 7 229 862 1134 Maximum Alert Level 4 | . 1 . . . 2 1 . 4 . . . . 3 . . . . 1 . . . . 3 4 . . 2 4 4 Low Security (%) 38 | 100 89 100 . 100 26 3 . 30 . . . . 35 . . . . 81 . . . . . . . 100 41 . . Level 1 18 | . 10 . . . 13 96 . 21 . . . . 27 . . . . 18 . . . . . . . . 51 16 . Level 2 14 | . . . . . 59 . . 11 . . . . 25 . . . . . . . . . 46 14 . . 6 30 . Level 3 19 | . . . . . . . . 30 . . . . 11 . . . . . . . . . 53 78 . . . 19 50 Level 4 9 | . . . . . . . . 7 . . . . . . . . . . . . . . . 6 . . . 33 49 Level 5 . | . . . . . . . . . . . . . . . . . . . . . . . . . . . . . . High Security . | . . . . . . . . . . . . . . . . . . . . . . . . . . . . . . Max Security . | . . . . . . . . . . . . . . . . . . . . . . . . . . . . . . Squads Dispatched 94 | . 6 . . 2 3 . . 14 . . . 1 11 . . . . 3 . 1 . 1 6 6 . 4 7 21 8 Investigation 20 | . 5 . . 1 . . . 5 . . . . 2 . . . . 1 . . . . . . . 1 1 2 2 Extermination 16 | . . . . . . . . 4 . . . . 2 . . . . 1 . . . . 1 2 . . 2 2 2 Reinforcement 32 | . 1 . . 1 3 . . 3 . . . . 6 . . . . 1 . . . . 4 . . 3 1 8 1 Assault 19 | . . . . . . . . 2 . . . 1 . . . . . . . 1 . 1 1 4 . . . 6 3 Garrison 7 | . . . . . . . . . . . . . 1 . . . . . . . . . . . . . 3 3 . Intercept . | . . . . . . . . . . . . . . . . . . . . . . . . . . . . . . Searches Triggered . | . . . . . . . . . . . . . . . . . . . . . . . . . . . . . . Data Miner Redirects 13 | . . . . . . . . . . . . . 2 . . . . . . . . . 1 2 . . . 4 4 Construction Impeded 7 | . . . . . . . . 1 . . . . 3 . . . . . . . . . . . . . . 3 . Haulers Reinforced 7 | . . . . . . . . 1 . . . . 1 . . . . 1 . . . . . . . 1 . 3 . Active Scanning Responses . | . . . . . . . . . . . . . . . . . . . . . . . . . . . . . . Cargo Convoy Interrupts 1 | . . . . . . . . 1 . . . . . . . . . . . . . . . . . . . . . Stealth | -11 -10 -10 -10 -8 -8 -8 -8 -6 -6 -6 -6 -5 -5 -5 -5 -5 -4 -4 -4 -4 -4 -3 -3 -3 -3 -2 -2 -1 -1 --------- Run | Yrd Mat Min Sub Mat Sto Rec Scr Fac Low Low Dat Pro Fac Upp Upp Zhi Pro Fac Upp Upp War Pro Res Arm Lab Res Tes Acc Com Distress Signals 18 | . 1 . . 2 5 . . . . . . . . . . . . 1 . . . . . 1 . . 3 4 1 Communications Jammed . | . . . . . . . . . . . . . . . . . . . . . . . . . . . . . . Distress Signals . | . . . . . . . . . . . . . . . . . . . . . . . . . . . . . . Times Spotted 623 | . 33 2 5 17 31 3 . 56 11 6 . 35 39 10 3 . 3 8 7 36 62 18 31 39 1 15 40 66 46 Peak Tracking Total 14 | . 6 2 2 5 7 2 . 6 5 4 . 12 6 4 2 . 2 3 5 7 14 10 9 6 1 12 7 10 9 Tactical Retreats 28 | . 4 . . . 1 . . 2 1 . . 4 3 . . . . . 1 . . . 2 6 . . 2 2 . Traps | -11 -10 -10 -10 -8 -8 -8 -8 -6 -6 -6 -6 -5 -5 -5 -5 -5 -4 -4 -4 -4 -4 -3 -3 -3 -3 -2 -2 -1 -1 ------- Run | Yrd Mat Min Sub Mat Sto Rec Scr Fac Low Low Dat Pro Fac Upp Upp Zhi Pro Fac Upp Upp War Pro Res Arm Lab Res Tes Acc Com Traps Triggered 17 | . 5 . . . . . . 4 . . . . . . . . . 1 . . 1 . . . . . 1 1 4 Indirectly . | . . . . . . . . . . . . . . . . . . . . . . . . . . . . . . Trap Hack Attempts . | . . . . . . . . . . . . . . . . . . . . . . . . . . . . . . Triggered . | . . . . . . . . . . . . . . . . . . . . . . . . . . . . . . Disarmed . | . . . . . . . . . . . . . . . . . . . . . . . . . . . . . . Reprogrammed . | . . . . . . . . . . . . . . . . . . . . . . . . . . . . . . Reused . | . . . . . . . . . . . . . . . . . . . . . . . . . . . . . . Traps Extracted . | . . . . . . . . . . . . . . . . . . . . . . . . . . . . . . Installed . | . . . . . . . . . . . . . . . . . . . . . . . . . . . . . . Triggered 24 | . . . . . . . . 1 . 2 . . . 1 . . . . . 1 18 . . . . . 1 . . Machines | -11 -10 -10 -10 -8 -8 -8 -8 -6 -6 -6 -6 -5 -5 -5 -5 -5 -4 -4 -4 -4 -4 -3 -3 -3 -3 -2 -2 -1 -1 ---------- Run | Yrd Mat Min Sub Mat Sto Rec Scr Fac Low Low Dat Pro Fac Upp Upp Zhi Pro Fac Upp Upp War Pro Res Arm Lab Res Tes Acc Com Machines Disabled 58 | . . . . 2 4 . . 22 . . . . 3 . . 1 . . . 1 2 2 3 2 2 . 5 6 3 Max in Single Turn 4 | . . . . 1 1 . . 4 . . . . 2 . . 1 . . . 1 1 1 1 1 1 . 1 2 1 Garrison Access 3 | . . . . . . . . 2 . . . . . . . . . . . . . . . . . . . 1 . Machines Repaired . | . . . . . . . . . . . . . . . . . . . . . . . . . . . . . . Machines Dismantled 1 | . . . . . 1 . . . . . . . . . . . . . . . . . . . . . . . . Machines Sabotaged . | . . . . . . . . . . . . . . . . . . . . . . . . . . . . . . Overloaded Fab Kills . | . . . . . . . . . . . . . . . . . . . . . . . . . . . . . . Hacking | -11 -10 -10 -10 -8 -8 -8 -8 -6 -6 -6 -6 -5 -5 -5 -5 -5 -4 -4 -4 -4 -4 -3 -3 -3 -3 -2 -2 -1 -1 --------- Run | Yrd Mat Min Sub Mat Sto Rec Scr Fac Low Low Dat Pro Fac Upp Upp Zhi Pro Fac Upp Upp War Pro Res Arm Lab Res Tes Acc Com Machines Accessed 63 | . 8 . 3 3 3 8 2 7 . . 4 . 4 . . 4 . 3 . . 5 . . 1 1 2 . 4 1 Terminals 20 | . 5 . . 2 3 3 . 3 . . . . . . . . . 1 . . . . . 1 . . . 1 1 Fabricators 2 | . . . . . . . . . . . . . 1 . . . . 1 . . . . . . . . . . . Repair Stations 3 | . 1 . . . . . . 1 . . . . 1 . . . . . . . . . . . . . . . . Recycling Units 14 | . 2 . . . . 5 . 2 . . . . 2 . . . . . . . . . . . . 1 . 2 . Scanalyzers 3 | . . . . 1 . . . . . . . . . . . . . 1 . . . . . . . 1 . . . Garrison Access 2 | . . . . . . . . 1 . . . . . . . . . . . . . . . . . . . 1 . Total Hacks 180 | . 24 . 8 11 6 12 5 14 . . 28 . 12 . . 17 . 8 . . 11 . . 3 1 10 . 9 1 Successful 128 | . 15 . 8 8 3 7 5 7 . . 28 . 2 . . 17 . 4 . . 11 . . 1 1 7 . 4 . Failed 52 | . 9 . . 3 3 5 . 7 . . . . 10 . . . . 4 . . . . . 2 . 3 . 5 1 Catastrophic 7 | . . . . . . 1 . 2 . . . . 1 . . . . 1 . . . . . . . . . 1 1 Database Lockouts . | . . . . . . . . . . . . . . . . . . . . . . . . . . . . . . Manual 63 | . 19 . . 4 2 11 . 9 . . . . 5 . . . . 3 . . 1 . . 2 1 2 . 4 . Terminals 49 | . 17 . . 4 6 6 . 7 . . . . . . . . . 2 . . . . . 3 . . . 3 1 Fabricators 5 | . . . . . . . . . . . . . 2 . . . . 3 . . . . . . . . . . . Repair Stations 11 | . 4 . . . . . . 2 . . . . 5 . . . . . . . . . . . . . . . . Recycling Units 24 | . 3 . . . . 6 . 4 . . . . 5 . . . . . . . . . . . . 2 . 4 . Scanalyzers 18 | . . . . 7 . . . . . . . . . . . . . 3 . . . . . . . 8 . . . Garrison Access 3 | . . . . . . . . 1 . . . . . . . . . . . . . . . . . . . 2 . Terminal Hacks 85 | . 4 . 8 2 3 1 5 1 . . 28 . . . . 17 . 1 . . 11 . . 1 1 . . 2 . Record 33 | . . . 6 . . . 1 . . . 11 . . . . 5 . . . . 10 . . . . . . . . Part Schematic 14 | . . . . . . . . . . . 10 . . . . 4 . . . . . . . . . . . . . Robot Schematic 4 | . . . . . . . . . . . 4 . . . . . . . . . . . . . . . . . . Robot Analysis 10 | . 2 . . . . . 4 . . . . . . . . 4 . . . . . . . . . . . . . Prototype ID Bank 7 | . . . . . . . . . . . 3 . . . . 4 . . . . . . . . . . . . . Open Door 3 | . . . 1 . 1 . . . . . . . . . . . . . . . 1 . . . . . . . . Level Access Points 1 | . . . . . . . . . . . . . . . . . . . . . . . . . . . . 1 . Branch Access Points 2 | . . . . 1 . . . 1 . . . . . . . . . . . . . . . . . . . . . Machine Index 1 | . . . . . . . . . . . . . . . . . . . . . . . . . . . . 1 . Terminal Index 2 | . 1 . . . . 1 . . . . . . . . . . . . . . . . . . . . . . . Alert Level 2 | . . . . . 1 . . . . . . . . . . . . . . . . . . 1 . . . . . Unreport Threat 1 | . . . . 1 . . . . . . . . . . . . . . . . . . . . . . . . . Registered Components 1 | . . . . . 1 . . . . . . . . . . . . . . . . . . . . . . . . Zone Layout 2 | . 1 . . . . . . . . . . . . . . . . 1 . . . . . . . . . . . Release Object 2 | . . . 1 . . . . . . . . . . . . . . . . . . . . . 1 . . . . Fabricator Hacks . | . . . . . . . . . . . . . . . . . . . . . . . . . . . . . . Repair Station Hacks 5 | . 2 . . . . . . 2 . . . . 1 . . . . . . . . . . . . . . . . Scan Component 3 | . 1 . . . . . . 1 . . . . 1 . . . . . . . . . . . . . . . . Repair 2 | . 1 . . . . . . 1 . . . . . . . . . . . . . . . . . . . . . Recycling Unit Hacks . | . . . . . . . . . . . . . . . . . . . . . . . . . . . . . . Scanalyzer 14 | . . . . 6 . . . . . . . . . . . . . 2 . . . . . . . 6 . . . Insert Component 10 | . . . . 3 . . . . . . . . . . . . . 2 . . . . . . . 5 . . . Analyze 4 | . . . . 3 . . . . . . . . . . . . . . . . . . . . . 1 . . . Garrison Access Hacks 2 | . . . . . . . . 1 . . . . . . . . . . . . . . . . . . . 1 . Seal Access 2 | . . . . . . . . 1 . . . . . . . . . . . . . . . . . . . 1 . Unauthorized Hacks 22 | . 9 . . . . 6 . 3 . . . . 1 . . . . 1 . . . . . . . 1 . 1 . Terminals 9 | . 7 . . . . 1 . 1 . . . . . . . . . . . . . . . . . . . . . Assimilate 1 | . . . . . . . . 1 . . . . . . . . . . . . . . . . . . . . . Botnet 3 | . 2 . . . . 1 . . . . . . . . . . . . . . . . . . . . . . . Skim 5 | . 5 . . . . . . . . . . . . . . . . . . . . . . . . . . . . Fabricators 1 | . . . . . . . . . . . . . . . . . . 1 . . . . . . . . . . . Haulers 1 | . . . . . . . . . . . . . . . . . . 1 . . . . . . . . . . . Repair Stations 5 | . . . . . . . . 2 . . . . 1 . . . . . . . . . . . . 1 . 1 . Recycling Units 7 | . 2 . . . . 5 . . . . . . . . . . . . . . . . . . . . . . . Tunnel 7 | . 2 . . . . 5 . . . . . . . . . . . . . . . . . . . . . . . Scrapoids 5 | . . . . . . . . 2 . . . . 1 . . . . . . . . . . . . 1 . 1 . Scanalyzers . | . . . . . . . . . . . . . . . . . . . . . . . . . . . . . . Garrison Access . | . . . . . . . . . . . . . . . . . . . . . . . . . . . . . . Data Cores Recovered 1 | . . . . . . . . . . . . . . . . . . . . . . . . 1 . . . . . Used 1 | . . . . . . . . . . . . . . . . . . . . . . . . 1 . . . . . Hacking Detections 33 | . 7 . . 3 2 4 . 5 . . . . 3 . . . . 3 . . . . . 1 . 1 . 3 1 Full Trace Events 7 | . 2 . . 1 . . . 2 . . . . 1 . . . . . . . . . . . . . . 1 . Feedback Events . | . . . . . . . . . . . . . . . . . . . . . . . . . . . . . . Feedback Blocked . | . . . . . . . . . . . . . . . . . . . . . . . . . . . . . . Robot Schematics Acquired 4 | . . . . . . . . . . . 4 . . . . . . . . . . . . . . . . . . Robots Built . | . . . . . . . . . . . . . . . . . . . . . . . . . . . . . . Authchips . | . . . . . . . . . . . . . . . . . . . . . . . . . . . . . . Time . | . . . . . . . . . . . . . . . . . . . . . . . . . . . . . . Total Robot Build Rating . | . . . . . . . . . . . . . . . . . . . . . . . . . . . . . . Part Schematics Acquired 19 | . . . . 3 . . . . . . 10 . 1 . . 4 . . . . . . . . . 1 . . . Parts Built . | . . . . . . . . . . . . . . . . . . . . . . . . . . . . . . Authchips . | . . . . . . . . . . . . . . . . . . . . . . . . . . . . . . Time . | . . . . . . . . . . . . . . . . . . . . . . . . . . . . . . Total Part Build Rating . | . . . . . . . . . . . . . . . . . . . . . . . . . . . . . . Parts Repaired 2 | . 1 . . . . . . 1 . . . . . . . . . . . . . . . . . . . . . Time 51 | . 13 . . . . . . 38 . . . . . . . . . . . . . . . . . . . . . Parts Recycled . | . . . . . . . . . . . . . . . . . . . . . . . . . . . . . . Recycled Matter . | . . . . . . . . . . . . . . . . . . . . . . . . . . . . . . Retrieved Matter . | . . . . . . . . . . . . . . . . . . . . . . . . . . . . . . Retrieved Components . | . . . . . . . . . . . . . . . . . . . . . . . . . . . . . . Parts Scanalyzed 5 | . . . . 3 . . . . . . . . . . . . . 1 . . . . . . . 1 . . . Part Schematics Acquired 4 | . . . . 3 . . . . . . . . . . . . . . . . . . . . . 1 . . . Parts Damaged . | . . . . . . . . . . . . . . . . . . . . . . . . . . . . . . Bothacking | -11 -10 -10 -10 -8 -8 -8 -8 -6 -6 -6 -6 -5 -5 -5 -5 -5 -4 -4 -4 -4 -4 -3 -3 -3 -3 -2 -2 -1 -1 ------------ Run | Yrd Mat Min Sub Mat Sto Rec Scr Fac Low Low Dat Pro Fac Upp Upp Zhi Pro Fac Upp Upp War Pro Res Arm Lab Res Tes Acc Com Used RIF Installer . | . . . . . . . . . . . . . . . . . . . . . . . . . . . . . . Robots Hacked . | . . . . . . . . . . . . . . . . . . . . . . . . . . . . . . Non-combat . | . . . . . . . . . . . . . . . . . . . . . . . . . . . . . . Combat . | . . . . . . . . . . . . . . . . . . . . . . . . . . . . . . Robot Hacks Applied . | . . . . . . . . . . . . . . . . . . . . . . . . . . . . . . Relay Couplers Released 4 | . . . . . . . . 4 . . . . . . . . . . . . . . . . . . . . . Programmers 4 | . . . . . . . . 4 . . . . . . . . . . . . . . . . . . . . . Fabnet Peak Effective % . | . . . . . . . . . . . . . . . . . . . . . . . . . . . . . . Robots Rewired 8 | . . . . . . . . . . . . 1 . . . . . . . . 5 2 . . . . . . . Allies Hacked 2 | . . . . . . . . . . . . . . . . . . . . . 1 . . . . . . 1 . Hacks Repelled . | . . . . . . . . . . . . . . . . . . . . . . . . . . . . . . Allies | -11 -10 -10 -10 -8 -8 -8 -8 -6 -6 -6 -6 -5 -5 -5 -5 -5 -4 -4 -4 -4 -4 -3 -3 -3 -3 -2 -2 -1 -1 -------- Run | Yrd Mat Min Sub Mat Sto Rec Scr Fac Low Low Dat Pro Fac Upp Upp Zhi Pro Fac Upp Upp War Pro Res Arm Lab Res Tes Acc Com Total Allies 53 | . . . . . 10 . . 11 . . . 2 5 . . . . . . . 5 2 . . . 5 . 5 8 Largest Group 10 | . . . . . 10 10 10 6 1 . . 1 5 5 4 4 4 4 . . 5 2 . . . 5 . 5 . Highest-Rated Group 320 | . . . . . 173 173 173 169 28 . . 96 238 238 188 188 188 188 . . 284 90 . . . 320 . 320 . Highest-Rated Ally 96 | . . . . . 29 29 29 31 28 . . 96 50 50 47 47 47 47 . . 65 48 . . . 64 . 64 . Total Orders 5 | . . . . . . . 1 1 . . . . . . . 2 . . . . 1 . . . . . . . . STAY 3 | . . . . . . . . 1 . . . . . . . 1 . . . . 1 . . . . . . . . ROAM 1 | . . . . . . . 1 . . . . . . . . . . . . . . . . . . . . . . FOLLOW 1 | . . . . . . . . . . . . . . . . 1 . . . . . . . . . . . . . Ally Attacks 279 | . . . . . . 14 . 106 8 . . 29 . 42 9 . 16 . . . 6 6 . . . 20 . 18 5 Total Damage 6094 | . . . . . . 189 . 1693 42 . . 1353 . 643 163 . 364 . . . 218 158 . . . 514 . 541 216 Kills 42 | . . . . . . 1 . 14 . . . 8 . 8 2 . 2 . . . 1 2 . . . 1 . 2 1 Allies Corrupted 2 | . . . . . . . . . . . . . . . . . . . . . 2 . . . . . . . . Allies Melted 1 | . . . . . . . . . . . . 1 . . . . . . . . . . . . . . . . . Intel | -11 -10 -10 -10 -8 -8 -8 -8 -6 -6 -6 -6 -5 -5 -5 -5 -5 -4 -4 -4 -4 -4 -3 -3 -3 -3 -2 -2 -1 -1 ------- Run | Yrd Mat Min Sub Mat Sto Rec Scr Fac Low Low Dat Pro Fac Upp Upp Zhi Pro Fac Upp Upp War Pro Res Arm Lab Res Tes Acc Com Robot Analysis Total 10 | . 2 . . . . . 4 . . . . . . . . 4 . . . . . . . . . . . . . Derelict Logs Recovered 13 | . . 1 2 . . . 2 . 1 . . 3 . . 2 . . . . 2 . . . . . . . . . Drone Launches . | . . . . . . . . . . . . . . . . . . . . . . . . . . . . . . Drone Recoveries . | . . . . . . . . . . . . . . . . . . . . . . . . . . . . . . Exploration | -11 -10 -10 -10 -8 -8 -8 -8 -6 -6 -6 -6 -5 -5 -5 -5 -5 -4 -4 -4 -4 -4 -3 -3 -3 -3 -2 -2 -1 -1 ------------- Run | Yrd Mat Min Sub Mat Sto Rec Scr Fac Low Low Dat Pro Fac Upp Upp Zhi Pro Fac Upp Upp War Pro Res Arm Lab Res Tes Acc Com Turns Passed 27980 | 120 1655 1049 2335 718 842 800 2595 3012 678 585 148 786 1166 464 331 317 296 416 218 831 1588 686 884 773 779 229 933 1506 1240 Spaces Moved 14610 | 59 759 456 1251 334 301 458 1525 1507 316 265 78 451 764 276 194 172 181 265 171 515 853 452 398 289 526 154 466 590 584 Core 456 | 4 1 . . . . . . . . . . 165 286 . . . . . . . . . . . . . . . . Treads 7488 | 55 758 456 1251 262 301 458 1525 684 . . . 204 379 276 194 172 181 99 . . . . 192 41 . . . . . Legs 5072 | . . . . . . . . 40 316 265 78 82 . . . . . . . 212 853 452 206 248 526 154 466 590 584 Wheels 915 | . . . . 72 . . . 203 . . . . . . . . . 166 171 303 . . . . . . . . . Hover 620 | . . . . . . . . 580 . . . . 40 . . . . . . . . . . . . . . . . Flight 59 | . . . . . . . . . . . . . 59 . . . . . . . . . . . . . . . . Fastest Speed 48 | 50 160 160 160 130 166 166 166 95 190 120 192 50 48 160 160 160 160 110 110 100 110 110 112 120 120 120 116 106 106 Average Speed 147 | 152 160 160 166 171 196 166 166 159 190 190 192 140 106 160 160 160 160 128 110 122 116 111 138 127 120 120 130 127 137 Slowest Speed 490 | 160 450 160 240 246 250 166 166 400 190 192 192 490 200 240 160 160 160 160 110 190 190 240 240 330 120 120 186 190 176 Overloaded Moves . | . . . . . . . . . . . . . . . . . . . . . . . . . . . . . . Propulsion Burnouts . | . . . . . . . . . . . . . . . . . . . . . . . . . . . . . . Robots Hopped . | . . . . . . . . . . . . . . . . . . . . . . . . . . . . . . Cave-ins Triggered . | . . . . . . . . . . . . . . . . . . . . . . . . . . . . . . Teleports 1 | . . . . . . . . . . . . . . . . . . . . . . . . 1 . . . . . Exploration Rate (%) 50 | 5 88 98 54 39 68 97 91 34 51 45 68 66 29 50 39 60 47 8 43 50 90 51 15 16 98 7 56 20 20 Regions Visited 29 Branch Regions 21 Pre-discovered Areas 14 | . 2 1 . . . 5 1 . . . 1 . . . 1 3 . . . . . . . . . . . . . Known Exits Taken 5 | . . . . 1 . . . 1 . . . . 1 . . . 1 . . . . . 1 . . . . . . Unknown Exits Taken 24 | 1 1 1 1 . 1 1 1 . 1 1 1 1 . 1 1 1 . 1 1 1 1 1 . 1 1 1 1 1 . Scrap Searched 23 | . . 1 . . . . 1 . 2 9 . 2 . 3 1 . 1 . 1 2 . . . . . . . . . Spaces Dug 140 | . . . . . . . . 10 . . . 17 . . . . . . . . . 33 18 . . 5 . 57 . Terrain Destroyed 1049 | . . . . . . . . 169 32 16 . 28 34 . . . . 10 11 105 27 173 81 32 13 5 18 197 98 Melee . | . . . . . . . . . . . . . . . . . . . . . . . . . . . . . . Projectile 325 | . . . . . . . . 18 . 1 . 1 10 . . . . 10 11 21 21 16 31 17 13 5 7 104 39 AOE 720 | . . . . . . . . 151 32 15 . 27 24 . . . . . . 84 6 157 50 15 . . 11 90 58 Terrain Rammed . | . . . . . . . . . . . . . . . . . . . . . . . . . . . . . . Walls Destroyed . | . . . . . . . . . . . . . . . . . . . . . . . . . . . . . . Machines Disabled . | . . . . . . . . . . . . . . . . . . . . . . . . . . . . . . Actions | -11 -10 -10 -10 -8 -8 -8 -8 -6 -6 -6 -6 -5 -5 -5 -5 -5 -4 -4 -4 -4 -4 -3 -3 -3 -3 -2 -2 -1 -1 --------- Run | Yrd Mat Min Sub Mat Sto Rec Scr Fac Low Low Dat Pro Fac Upp Upp Zhi Pro Fac Upp Upp War Pro Res Arm Lab Res Tes Acc Com Total 19108 | 75 1028 755 1448 440 401 485 1589 1929 354 321 77 533 969 292 211 212 183 321 190 648 1395 601 619 544 630 186 684 1139 849 Wait 1931 | . 130 286 132 36 14 20 28 217 2 29 . 6 29 . 11 2 . 14 2 26 388 49 55 104 . 13 60 252 26 Move 14582 | 58 758 455 1250 333 300 457 1524 1506 315 264 77 450 763 275 193 171 180 264 170 514 852 451 397 288 525 153 466 589 584 Hop . | . . . . . . . . . . . . . . . . . . . . . . . . . . . . . . Pick Up 248 | 4 23 . 6 9 . 1 18 25 2 2 . 6 25 2 2 4 . 2 . 5 12 7 6 3 21 2 13 23 25 Fast Attach 250 | 7 7 . . 12 6 . . 29 3 3 . 8 28 3 . 8 . 6 . 6 13 5 17 14 12 2 16 25 20 Attach 219 | . 6 1 2 6 . . 1 11 . 1 . 14 6 . . 5 . 2 1 19 11 12 9 6 5 2 23 41 35 Detach 101 | . . . . . . . . 1 . . . 1 1 . . 3 . 1 . 11 9 7 9 6 4 . 17 19 12 Swap 120 | . 6 1 14 4 5 . 9 13 3 3 . . 6 2 . . . 2 . 4 2 5 5 3 2 2 7 12 10 Drop 315 | . 8 . 12 19 7 1 9 32 5 5 . 5 32 6 2 11 . 7 . . 21 4 16 8 24 3 16 33 29 Fire 1215 | 6 87 10 24 21 59 6 . 94 24 14 . 39 68 4 3 8 3 22 17 63 37 40 105 110 37 8 63 145 98 Melee 18 | . . . 8 . . . . . . . . 1 9 . . . . . . . . . . . . . . . . Ram 1 | . . . . . . . . . . . . . . . . . . . . . . . . 1 . . . . . Kick 10 | . . . . . . . . . . . . . . . . . . . . . . . . 1 . 1 3 . 5 Crush 9 | . 3 2 . . 1 . . . . . . . 2 . . . . 1 . . . . . . . . . . . Escape Stasis 6 | . . . . . . . . 1 . . . . . . . . . . . . . . . . . . . . 5 Rewire 73 | . . . . . . . . . . . . 2 . . . . . . . . 50 21 . . . . . . . Trap . | . . . . . . . . . . . . . . . . . . . . . . . . . . . . . . Miscellaneous 10 | . . . . . 9 . . . . . . 1 . . . . . . . . . . . . . . . . . Route ------- -11/Scrapyard -10/Materials (discovered 5 exits: [*Mat x3] / [*Min x2]) -10/Mines (discovered 3 exits: [*Mat x2] / *Sub) -10/Subcaves -8/Materials (discovered 3 exits: *Fac x2 / *Sto) -8/Storage -8/Recycling (discovered 2 exits: *Fac / *Scr) -8/Scraptown (discovered 2 exits: *Fac x2) -6/Factory (discovered 5 exits: *Fac / *Low x2 / Ext x2) -6/Lower Caves -6/Lower Caves -6/Data Miner -5/Proximity Caves -5/Factory -5/Upper Caves -5/Upper Caves (discovered 2 exits: Fac / *Zhi) -5/Zhirov -4/Proximity Caves -4/Factory -4/Upper Caves -4/Upper Caves -4/Warlord -3/Proximity Caves -3/Research -3/Armory -3/Lab -2/Research -2/Testing -1/Access (discovered 2 exits: Sur / *Com) -1/Command History --------- Turn | Location | Event 8 | -11/Scrapyard | Discovered new exit (range 16) 121 | -11/Scrapyard | Entered Materials 312 | -10/Materials | Build established: Mutant 536 | -10/Materials | Discovered new exit (range 16) 621 | -10/Materials | Derelicts attacked the area 913 | -10/Materials | Discovered new exit (range 8) 934 | -10/Materials | Discovered new exit (range 13) 1295 | -10/Materials | Discovered new exit (range 11) 1397 | -10/Materials | Discovered new exit (range 15) 1517 | -10/Materials | Repaired Lgt. Treads 1776 | -10/Materials | Entered Mines 1805 | -10/Mines | Deemed a non-threat by the Exiles lab entrance 1831 | -10/Mines | Core integrity fell below 50% 2150 | -10/Mines | Discovered new exit (range 5) 2257 | -10/Mines | Discovered new exit (range 16) 2404 | -10/Mines | Learned location of Storage (-8) 2817 | -10/Mines | Discovered new exit (range 6) 2825 | -10/Mines | Entered Subcaves 2990 | -10/Subcaves | Shifting Twisted Machinery released Sub. Power Source 3019 | -10/Subcaves | Shifting Twisted Machinery released Mak. Hammer 3116 | -10/Subcaves | Learned location of 1 exit from Materials 3867 | -10/Subcaves | Discovered new exit (range 15) 4405 | -10/Subcaves | Visited Clippyterm 4410 | -10/Subcaves | Learned Factory fabricator intel 4410 | -10/Subcaves | Learned Research security intel 4477 | -10/Subcaves | Learned Materials emergency access door positions 4565 | -10/Subcaves | A swath of the cavern ceiling suddenly collapsed 4604 | -10/Subcaves | Core integrity fell below 20% 4920 | -10/Subcaves | Found SUBCON Basin 5160 | -10/Subcaves | Entered Materials 5160 | -8/Materials | Evolved 4 slots: Propulsion x1, Utility x2, Weapon x1 5161 | -8/Materials | Identified exit to Factory 5273 | -8/Materials | Met 7R-MNS 5511 | -8/Materials | Build established: Scavenger-Skirmisher 5734 | -8/Materials | Identified exit to Storage 5776 | -8/Materials | Discovered exit to Factory (range 20) 5878 | -8/Materials | Entered Storage 6121 | -8/Storage | Build established: Scavenger-Tank 6307 | -8/Storage | Destroyed 12 combat bots 6510 | -8/Storage | Assisted by bots powering up and referring to "LRC-V3" 6701 | -8/Storage | Discovered new exit (range 3) 6720 | -8/Storage | Entered Recycling 6720 | -8/Recycling | Accompanied by 10 allies 6804 | -8/Recycling | Build established: Commander-Gunner 6997 | -8/Recycling | Discovered new exit (range 8) 7071 | -8/Recycling | Scanned before Scraplab entrance 7454 | -8/Recycling | Discovered new exit (range 11) 7459 | -8/Recycling | Entered Scraplab 7520 | -8/Recycling | Entered Scraptown 7520 | -8/Scraptown | Accompanied by 10 allies 7889 | -8/Scraptown | Visited Supply Room 7946 | -8/Scraptown | Visited Comm Corps 8014 | -8/Scraptown | Visited Cyclists 8066 | -8/Scraptown | Heard Great Nut preacher, LISTEN AND RECITE! 8081 | -8/Scraptown | Visited Red Mages 8144 | -8/Scraptown | Visited Symbiants 8197 | -8/Scraptown | Scanned Subdweller tech in exchange for log data 8202 | -8/Scraptown | Learned location of Warlord (-4) 8203 | -8/Scraptown | Learned Research terminal intel 8546 | -8/Scraptown | Visited SPCMW 8576 | -8/Scraptown | Visited Cave Peace 8628 | -8/Scraptown | Visited UFD Registry 8681 | -8/Scraptown | Registered with UFD as "Smoothslasher" 8741 | -8/Scraptown | Visited LU-1G1's Boring Crew 8862 | -8/Scraptown | Visited Chapter 10 9038 | -8/Scraptown | Visited Junk Repository 9081 | -8/Scraptown | Visited Scrap Suit Storage 9142 | -8/Scraptown | Visited Scrapoid Pod Storage 9157 | -8/Scraptown | Found Scrapoid Pod 9196 | -8/Scraptown | Visited Curators Association 9240 | -8/Scraptown | Visited Infowarlord's Domain 9252 | -8/Scraptown | Found Exp. Terrain Scan Processor 9512 | -8/Scraptown | Visited Derelict Rescue Squad 9522 | -8/Scraptown | Found DRS Beacon 9553 | -8/Scraptown | Visited Analyses Database 9684 | -8/Scraptown | Discovered new exit (range 13) 9949 | -8/Scraptown | Found Scrap Suit 10003 | -8/Scraptown | Discovered new exit (range 5) 10115 | -8/Scraptown | Entered Factory 10115 | -6/Factory | Evolved 4 slots: Propulsion x1, Utility x3 10116 | -6/Factory | Loaded intel: 6 fabricator locations 10467 | -6/Factory | Build established: Gunner 10749 | -6/Factory | Repaired Arm. Treads 11009 | -6/Factory | Identified exit to Lower Caves 11009 | -6/Factory | Identified exit to Extension 11139 | -6/Factory | Build established: Hacker-Gunner 11767 | -6/Factory | Lost 4 parts (1p1n1u1w) 11774 | -6/Factory | System corruption reached 10% 11848 | -6/Factory | Discovered new exit (range 15) 12040 | -6/Factory | Scrapoid reinforcements arrived 12136 | -6/Factory | Cargo convoy interrupted 12190 | -6/Factory | Lost 3 allies 12472 | -6/Factory | Build established: Gunner 12915 | -6/Factory | First assault squad dispatched 12916 | -6/Factory | Scrapoid reinforcements arrived 13037 | -6/Factory | Lost 3 allies 13127 | -6/Factory | Entered Lower Caves 13127 | -6/Lower Caves | Accompanied by 1 ally 13293 | -6/Lower Caves | Learned Factory stockpile data 13336 | -6/Lower Caves | Build established: Scavenger-Gunner 13395 | -6/Lower Caves | Attacked by a faux Warlord 13612 | -6/Lower Caves | Attracted the attention of an 0b10 checkpoint 13774 | -6/Lower Caves | Discovered new exit (range 4) 13805 | -6/Lower Caves | Entered another Lower Caves area 14161 | -6/Lower Caves | Attracted the attention of an 0b10 checkpoint 14173 | -6/Lower Caves | Core integrity fell below 50% 14361 | -6/Lower Caves | Discovered new exit (range 13) 14390 | -6/Lower Caves | Entered Data Miner 14390 | -6/Data Miner | Discovered new exit (range 6) 14427 | -6/Data Miner | Met Data Miner 14475 | -6/Data Miner | Learned location of Section 7 (-3) 14475 | -6/Data Miner | Acquired the access code to Warlord's prototype stash 14496 | -6/Data Miner | Received God Mode back door access code from Data Miner 14538 | -6/Data Miner | Entered Proximity Caves 14694 | -5/Proximity Caves | Spotted B-75 Beast 14733 | -5/Proximity Caves | Activated DRS Beacon 14739 | -5/Proximity Caves | Escorted by Enhanced Grunt 14766 | -5/Proximity Caves | Allies destroyed B-75 Beast 14790 | -5/Proximity Caves | Lost 11 parts (1p4n1u5w) 14844 | -5/Proximity Caves | Learned 4 Factory zone layouts 14934 | -5/Proximity Caves | Attracted the attention of an 0b10 checkpoint 14958 | -5/Proximity Caves | Core integrity fell below 20% 14987 | -5/Proximity Caves | Lost 7 parts (1p1n3u2w) 15023 | -5/Proximity Caves | Learned 8 Factory zone layouts 15107 | -5/Proximity Caves | Attracted the attention of an 0b10 outpost 15206 | -5/Proximity Caves | Learned Factory emergency access door positions 15242 | -5/Proximity Caves | Lost 10 parts (1p3n3u3w) 15321 | -5/Proximity Caves | Discovered new exit (range 8) 15324 | -5/Proximity Caves | Entered Factory 15324 | -5/Factory | Evolved 2 slots: Power x1, Weapon x1 15325 | -5/Factory | Identified exit to Upper Caves 15368 | -5/Factory | Incoming investigation squad redirected 15478 | -5/Factory | Build established: Mutant 15921 | -5/Factory | Garrison activated, responded to threat 16218 | -5/Factory | Build established: Scavenger-Tank 16367 | -5/Factory | Scrapoids reinforcements arrived? 16368 | -5/Factory | Incoming investigation squad redirected 16379 | -5/Factory | Destroyed 7 combat bots 16490 | -5/Factory | Entered Upper Caves 16490 | -5/Upper Caves | Accompanied by 5 allies 16673 | -5/Upper Caves | Build established: Commander-Tank 16904 | -5/Upper Caves | Discovered new exit (range 5) 16954 | -5/Upper Caves | Entered another Upper Caves area 16954 | -5/Upper Caves | Accompanied by 4 allies 17173 | -5/Upper Caves | Identified exit to Factory 17249 | -5/Upper Caves | Learned location of Armory (-3) 17257 | -5/Upper Caves | Discovered new exit (range 14) 17285 | -5/Upper Caves | Entered Zhirov 17285 | -5/Zhirov | Accompanied by 4 allies 17285 | -5/Zhirov | Discovered new exit (range 3) 17316 | -5/Zhirov | Met Zhirov 17355 | -5/Zhirov | Found Alien Artifact 17355 | -5/Zhirov | Identified Integrated Dissipator 17355 | -5/Zhirov | Installed Integrated Dissipator, increased core heat dissipation (+20) 17408 | -5/Zhirov | Found Alien Artifact 17448 | -5/Zhirov | Learned location of Command (-1) 17457 | -5/Zhirov | Zhirov requested help retrieving the SGEMP Prototype 17602 | -5/Zhirov | Entered Proximity Caves 17602 | -4/Proximity Caves | Accompanied by 4 allies 17640 | -4/Proximity Caves | Attracted the attention of an 0b10 checkpoint 17845 | -4/Proximity Caves | Discovered exit to Factory (range 16) 17884 | -4/Proximity Caves | Build established: Scavenger-Tank 17898 | -4/Proximity Caves | Entered Factory 17898 | -4/Factory | Accompanied by 4 allies 17898 | -4/Factory | Evolved 2 slots: Utility x2 17910 | -4/Factory | Identified Transdimensional Reconstructor 18064 | -4/Factory | Found Scrap Suit 18081 | -4/Factory | Murdered 4 allies 18284 | -4/Factory | Discovered new exit (range 11) 18303 | -4/Factory | Spotted B-86 Titan 18314 | -4/Factory | Entered Upper Caves 18332 | -4/Upper Caves | Build established: Scavenger-Scrapper 18354 | -4/Upper Caves | Spotted B-86 Titan 18365 | -4/Upper Caves | Destroyed B-86 Titan 18492 | -4/Upper Caves | Discovered new exit (range 15) 18532 | -4/Upper Caves | Entered another Upper Caves area 18532 | -4/Upper Caves | Spotted B-86 Titan 18552 | -4/Upper Caves | Destroyed B-86 Titan 18762 | -4/Upper Caves | Destroyed 10 combat bots 18852 | -4/Upper Caves | Attracted the attention of an 0b10 outpost 18891 | -4/Upper Caves | Destroyed 9 combat bots 18907 | -4/Upper Caves | Learned 12 Research zone layouts 18939 | -4/Upper Caves | Learned Research trap positions 18959 | -4/Upper Caves | Attracted the attention of an 0b10 checkpoint 19029 | -4/Upper Caves | System corruption reached 10% 19033 | -4/Upper Caves | Destroyed 10 combat bots 19037 | -4/Upper Caves | Lost 7 parts (3u4w) 19143 | -4/Upper Caves | System corruption reached 30% 19313 | -4/Upper Caves | Discovered new exit (range 10) 19321 | -4/Upper Caves | Build established: Scavenger-Gunner 19363 | -4/Upper Caves | Entered Warlord 19406 | -4/Warlord | System corruption cleaned by Quarantine Array 19478 | -4/Warlord | Learned Testing trap positions 19478 | -4/Warlord | Learned Testing stockpile data 19478 | -4/Warlord | Learned 4 Armory zone layouts 19479 | -4/Warlord | Learned Testing security intel 19479 | -4/Warlord | Learned Factory garrison access intel 19479 | -4/Warlord | Learned Research scanalyzer intel 19995 | -4/Warlord | Rebuked by Warlord 20006 | -4/Warlord | Opened Warlord's prototype stash 20020 | -4/Warlord | Warlord's base attacked by MAIN.C 20024 | -4/Warlord | Found Prototype Device 20025 | -4/Warlord | Identified Exp. Cloaking Device 20029 | -4/Warlord | Found Prototype Reactor 20036 | -4/Warlord | Found Prototype Processor 20149 | -4/Warlord | Found Prototype Energy Gun 20151 | -4/Warlord | Identified Vortex Rifle 20156 | -4/Warlord | Found Prototype Energy Cannon 20156 | -4/Warlord | Identified Vortex Driver 20158 | -4/Warlord | Found Vortex Driver 20161 | -4/Warlord | Found Prototype Energy Gun 20161 | -4/Warlord | Identified Vortex Rail 20166 | -4/Warlord | Found Prototype Launcher 20174 | -4/Warlord | Found Vortex Rifle 20195 | -4/Warlord | Build established: Scavenger-Tank 20317 | -4/Warlord | Lost 5 allies 20370 | -4/Warlord | Warlord forces counterattacked 20401 | -4/Warlord | Spotted Executioner 20422 | -4/Warlord | Destroyed Executioner 20445 | -4/Warlord | Found Prototype Processor 20445 | -4/Warlord | Identified Exp. Core Analyzer 20464 | -4/Warlord | P-80 Master assimilated allied ZT-H8V(g) 20468 | -4/Warlord | Spotted Executioner 20476 | -4/Warlord | Spotted Striker 20519 | -4/Warlord | Lost 17 allies 20666 | -4/Warlord | Spotted Striker 20681 | -4/Warlord | P-70 Sage assimilated allied IN-T1S(Y) 20691 | -4/Warlord | Identified Exp. Target Analyzer 20695 | -4/Warlord | Warlord base infiltrated, sounded retreat 20727 | -4/Warlord | Lost 5 allies 20750 | -4/Warlord | Build established: Scavenger-Gunner 20772 | -4/Warlord | Spotted Executioner 20783 | -4/Warlord | Destroyed Executioner 20815 | -4/Warlord | Core integrity fell below 50% 20828 | -4/Warlord | Discovered new exit (range 15) 20837 | -4/Warlord | Spotted Executioner 20840 | -4/Warlord | Spotted B-90 Cyclops 20842 | -4/Warlord | Spotted B-86 Titan 20879 | -4/Warlord | Lost 5 allies 20951 | -4/Warlord | Entered Proximity Caves 20954 | -3/Proximity Caves | Spotter reported a threat 21003 | -3/Proximity Caves | Attracted the attention of an 0b10 outpost 21006 | -3/Proximity Caves | Identified Vortex Catalyst Activator 21042 | -3/Proximity Caves | Destroyed 9 combat bots 21105 | -3/Proximity Caves | Spotter reported a threat 21408 | -3/Proximity Caves | Discovered new exit (range 9) 21487 | -3/Proximity Caves | Found Alien Artifact 21488 | -3/Proximity Caves | Identified Core Expander 21488 | -3/Proximity Caves | Installed Core Expander, added new Propulsion slot 21580 | -3/Proximity Caves | Build established: Scavenger-Mutant 21623 | -3/Proximity Caves | Identified Vortex Chain Reactor 21637 | -3/Proximity Caves | Entered Research 21637 | -3/Research | Evolved 2 slots: Power x1, Propulsion x1 21638 | -3/Research | Identified exit to Armory 21639 | -3/Research | Loaded intel: 66 trap records 21641 | -3/Research | Loaded intel: 24 terminal locations 21642 | -3/Research | Loaded intel: 5 scanalyzer locations 22279 | -3/Research | System corruption reached 10% 22387 | -3/Research | First assault squad dispatched 22479 | -3/Research | Lost 3 parts (3w) 22488 | -3/Research | Incoming assault squad redirected 22521 | -3/Research | Entered Armory 22790 | -3/Armory | System corruption reached 30% 22820 | -3/Armory | First assault squad dispatched 22842 | -3/Armory | Incoming assault squad redirected 23187 | -3/Armory | Incoming assault squad redirected 23284 | -3/Armory | Build established: Scavenger-Gunner 23293 | -3/Armory | Warped through subspace to slip node 23293 | -3/Armory | Discovered new exit (range 1) 23294 | -3/Armory | Entered Lab 23294 | -3/Lab | Discovered new exit (range 9) 23309 | -3/Lab | Unable to decrypt terminal 23309 | -3/Lab | Opened the door to a hidden lab 23310 | -3/Lab | Gained access to the hidden lab's interior 23313 | -3/Lab | Detected by scanners 23319 | -3/Lab | Confronted by A5 23400 | -3/Lab | Destroyed A5 23404 | -3/Lab | Found Prototype Protection 23433 | -3/Lab | Found Prototype Hackware 23453 | -3/Lab | Found Prototype Hackware 23460 | -3/Lab | Identified Med. Regenerative Plating 23501 | -3/Lab | Found Alien Artifact 23501 | -3/Lab | Identified Core Reset Matrix 23501 | -3/Lab | Used Core Reset Matrix 23505 | -3/Lab | Sensed 3 artifacts in vicinity 23522 | -3/Lab | Found Integrated Dissipator 23522 | -3/Lab | Installed Integrated Dissipator, increased core heat dissipation (+20) 23549 | -3/Lab | Found Prototype Energy Gun 23549 | -3/Lab | Identified Tachyon Dispersion Ray 23659 | -3/Lab | Found Transdimensional Reconstructor 23677 | -3/Lab | Discovered new exit (range 6) 23714 | -3/Lab | Found Prototype Energy Cannon 23720 | -3/Lab | Found Prototype Protection 23730 | -3/Lab | Identified Hvy. Regenerative Plating 23743 | -3/Lab | Found Prototype Hackware 23772 | -3/Lab | Found Core Regenerator 23969 | -3/Lab | Unable to decrypt terminal 23971 | -3/Lab | Found LC Capacitor 24073 | -3/Lab | Entered Research 24073 | -2/Research | Evolved 2 slots: Utility x2 24153 | -2/Research | Identified Quantum Router 24153 | -2/Research | Identified Exp. Hacking Suite 24153 | -2/Research | Identified Exp. System Shield 24153 | -2/Research | Identified Potential Cannon 24173 | -2/Research | Discovered new exit (range 20) 24229 | -2/Research | Found Prototype Device 24229 | -2/Research | Identified Thermal Barrier 24280 | -2/Research | Scrapoid reinforcements arrived 24302 | -2/Research | Entered Testing 24312 | -2/Testing | Lost 3 parts (3w) 24322 | -2/Testing | Lost 5 allies 24528 | -2/Testing | Lost 3 parts (1p2u) 24632 | -2/Testing | System corruption reached 10% 24675 | -2/Testing | Found Prototype Hackware 25028 | -2/Testing | Garrison activated, responded to threat 25105 | -2/Testing | Destroyed 7 combat bots 25174 | -2/Testing | Discovered new exit (range 3) 25235 | -2/Testing | Entered Access 25235 | -1/Access | Evolved 2 slots: Power x1, Utility x1 25289 | -1/Access | Identified System Mapper 25292 | -1/Access | Identified exit to Surface 25409 | -1/Access | Spotted B-99 Colossus 25435 | -1/Access | Destroyed B-99 Colossus 25485 | -1/Access | First assault squad dispatched 25505 | -1/Access | Incoming assault squad redirected 25513 | -1/Access | Scrapoids reinforcements arrived? 25523 | -1/Access | Incoming investigation squad redirected 25537 | -1/Access | Incoming investigation squad redirected 25684 | -1/Access | Found Unknown Device 25692 | -1/Access | Lost 5 allies 25874 | -1/Access | Identified Scrap Suit 25917 | -1/Access | Lost 3 parts (1n2u) 26002 | -1/Access | Lost 3 parts (1u2w) 26004 | -1/Access | Incoming assault squad redirected 26168 | -1/Access | Garrison activated, responded to threat 26206 | -1/Access | Found Prototype Processor 26207 | -1/Access | Identified Exp. Signal Interpreter 26273 | -1/Access | Destroyed 8 combat bots 26279 | -1/Access | Build established: Scavenger-Tank 26480 | -1/Access | Discovered new exit (range 7) 26599 | -1/Access | Build established: Scavenger-Gunner 26741 | -1/Access | Entered Command 26821 | -1/Command | Incoming investigation squad redirected 26993 | -1/Command | Incoming investigation squad redirected 27060 | -1/Command | System corruption reached 10% 27159 | -1/Command | Used Core Regenerator, restored core integrity (+400) 27241 | -1/Command | First assault squad dispatched 27370 | -1/Command | Incoming assault squad redirected 27404 | -1/Command | Lost 3 parts (2p1u) 27413 | -1/Command | Destroyed 9 combat bots 27504 | -1/Command | Found Unknown Launcher 27557 | -1/Command | Incoming assault squad redirected 27825 | -1/Command | Lost 3 parts (1p1u1w) 27840 | -1/Command | Identified Gamma Bomb Array 27901 | -1/Command | Destroyed 10 combat bots 27944 | -1/Command | Spotted Combat Programmer 27945 | -1/Command | Spotted Combat Programmer 27945 | -1/Command | Spotted M Guard 27945 | -1/Command | Spotted M Guard 27959 | -1/Command | Destroyed Combat Programmer 27973 | -1/Command | Core integrity fell below 50% 27976 | -1/Command | Emitted hypermatrix ping 27977 | -1/Command | Core integrity fell below 20% 27977 | -1/Command | Failed to warp due to unstable space 27981 | -1/Command | Assembled emerged from beneath the floor 27981 | -1/Command | Destroyed by H-88 Terminator with KE Penetrator Last Messages --------------- 27977_ GDLOSW 211